[Event "Elitserien 2019/2020, round 1-3"]
[Site "Uppsala University, Gamla torget, Uppsala, Sweden"]
[Date "2019.10.18"]
[Round "1.14"]
[White "Moreau, Teodor"]
[Black "Sevastianov, Andrii"]
[Result "1/2-1/2"]
[TimeControl "90 minutes for 40 moves + 30 minutes for the rest of the game + 30 seconds per move from move one."]
[WhiteTitle "FM"]
[WhiteFideId "1701177"]
[BlackFideId "1730240"]
[WhiteElo "2339"]
[BlackElo "2118"]

1. d4 {[%clk 01:30:25]} {[%emt 00:00:34]} Nf6 {[%clk 01:27:57]} {[%emt
00:03:04]} 2. c4 {[%clk 01:30:16]} {[%emt 00:00:39]} g6 {[%clk 01:28:06]}
{[%emt 00:00:21]} 3. Nc3 {[%clk 01:30:28]} {[%emt 00:00:18]} Bg7 {[%clk
01:28:26]} {[%emt 00:00:10]} 4. e4 {[%clk 01:30:25]} {[%emt 00:00:33]} d6
{[%clk 01:28:45]} {[%emt 00:00:12]} 5. Be2 {[%clk 01:30:01]} {[%emt 00:00:53]}
O-O {[%clk 01:28:36]} {[%emt 00:00:39]} 6. Nf3 {[%clk 01:29:58]} {[%emt
00:00:33]} e5 {[%clk 01:27:07]} {[%emt 00:01:59]} 7. O-O {[%clk 01:30:11]}
{[%emt 00:00:16]} Nc6 {[%clk 01:27:29]} {[%emt 00:00:09]} 8. d5 {[%clk
01:29:39]} {[%emt 00:01:03]} Ne7 {[%clk 01:27:45]} {[%emt 00:00:12]} 9. Nd2
{[%clk 01:28:10]} {[%emt 00:02:01]} Ne8 {[%clk 01:24:44]} {[%emt 00:03:28]} 10.
b4 {[%clk 01:27:50]} {[%emt 00:00:51]} f5 {[%clk 01:22:06]} {[%emt 00:03:09]}
11. c5 {[%clk 01:22:33]} {[%emt 00:05:47]} g5 {[%clk 01:14:15]} {[%emt
00:08:21]} 12. exf5 {[%clk 01:03:40]} {[%emt 00:19:23]} Nxf5 {[%clk 01:12:43]}
{[%emt 00:02:02]} 13. Nde4 {[%clk 01:03:35]} {[%emt 00:00:34]} h6 {[%clk
01:12:47]} {[%emt 00:00:28]} 14. Bd2 {[%clk 01:02:53]} {[%emt 00:01:11]} Nd4
{[%clk 01:09:55]} {[%emt 00:03:22]} 15. Bg4 {[%clk 01:00:52]} {[%emt 00:02:29]}
c6 {[%clk 00:58:23]} {[%emt 00:12:05]} 16. dxc6 {[%clk 00:54:10]} {[%emt
00:07:10]} Bxg4 {[%clk 00:45:42]} {[%emt 00:13:13]} 17. Qxg4 {[%clk 00:54:08]}
{[%emt 00:00:31]} d5 {[%clk 00:46:01]} {[%emt 00:00:12]} 18. cxb7 {[%clk
00:51:49]} {[%emt 00:02:47]} Rb8 {[%clk 00:46:21]} {[%emt 00:00:11]} 19. Ng3
{[%clk 00:48:21]} {[%emt 00:03:57]} Rxb7 {[%clk 00:45:42]} {[%emt 00:01:09]} 20.
Rab1 {[%clk 00:48:15]} {[%emt 00:00:37]} Rf3 {[%clk 00:31:32]} {[%emt
00:14:40]} 21. Nh5 {[%clk 00:42:01]} {[%emt 00:06:45]} Rd3 {[%clk 00:25:19]}
{[%emt 00:06:42]} 22. Rfd1 {[%clk 00:41:08]} {[%emt 00:01:23]} e4 {[%clk
00:20:01]} {[%emt 00:05:49]} 23. Be1 {[%clk 00:39:50]} {[%emt 00:01:47]} Rxd1
{[%clk 00:09:00]} {[%emt 00:11:30]} 24. Qxd1 {[%clk 00:37:57]} {[%emt
00:02:24]} Be5 {[%clk 00:08:47]} {[%emt 00:00:43]} 25. Qg4 {[%clk 00:31:26]}
{[%emt 00:07:01]} Rf7 {[%clk 00:08:09]} {[%emt 00:01:08]} 26. Rd1 {[%clk
00:26:42]} {[%emt 00:05:14]} Nc7 {[%clk 00:01:34]} {[%emt 00:07:06]} 27. Ne2
{[%clk 00:19:21]} {[%emt 00:07:50]} Nce6 {[%clk 00:01:44]} {[%emt 00:00:20]} 28.
Nhg3 {[%clk 00:08:19]} {[%emt 00:11:32]} Qf6 {[%clk 00:01:45]} {[%emt
00:00:29]} 29. Nc3 {[%clk 00:05:10]} {[%emt 00:03:39]} Nc7 {[%clk 00:00:58]}
{[%emt 00:01:17]} 30. h4 {[%clk 00:03:43]} {[%emt 00:01:57]} Nc2 {[%clk
00:01:00]} {[%emt 00:00:28]} 31. Nh5 {[%clk 00:02:50]} {[%emt 00:01:24]} Qf5
{[%clk 00:00:50]} {[%emt 00:00:40]} 32. Qxf5 {[%clk 00:01:50]} {[%emt
00:01:30]} Rxf5 {[%clk 00:01:12]} {[%emt 00:00:07]} 33. g4 {[%clk 00:02:08]}
{[%emt 00:00:12]} Nxe1 {[%clk 00:01:13]} {[%emt 00:00:29]} 34. gxf5 {[%clk
00:01:39]} {[%emt 00:00:59]} Nf3+ {[%clk 00:01:40]} {[%emt 00:00:04]} 35. Kf1
{[%clk 00:01:49]} {[%emt 00:00:20]} Bxc3 {[%clk 00:02:09]} {[%emt 00:00:01]} 36.
hxg5 {[%clk 00:02:05]} {[%emt 00:00:14]} hxg5 {[%clk 00:02:31]} {[%emt
00:00:07]} 37. b5 {[%clk 00:02:02]} {[%emt 00:00:34]} Bd4 {[%clk 00:02:10]}
{[%emt 00:00:51]} 38. b6 {[%clk 00:00:38]} {[%emt 00:01:53]} axb6 {[%clk
00:02:28]} {[%emt 00:00:12]} 39. cxb6 {[%clk 00:01:04]} {[%emt 00:00:04]} Bxb6
{[%clk 00:02:19]} {[%emt 00:00:40]} 40. Nf6+ {[%clk 00:01:26]} {[%emt
00:00:07]} Kf7 {[%clk 00:02:30]} {[%emt 00:00:19]} 41. Nxd5 {[%clk 00:01:32]}
{[%emt 00:00:25]} Nxd5 {[%clk 00:28:39]} {[%emt 00:04:20]} 42. Rxd5 {[%clk
00:31:34]} {[%emt 00:00:27]} g4 {[%clk 00:23:19]} {[%emt 00:05:51]} 43. Rd7+
{[%clk 00:25:52]} {[%emt 00:06:12]} Ke8 {[%clk 00:22:43]} {[%emt 00:01:07]} 44.
Rb7 {[%clk 00:19:18]} {[%emt 00:07:03]} Nd2+ {[%clk 00:21:51]} {[%emt
00:01:22]} 45. Ke2 {[%clk 00:14:09]} {[%emt 00:05:40]} Nc4 {[%clk 00:22:08]}
{[%emt 00:00:12]} 46. a4 {[%clk 00:12:36]} {[%emt 00:02:03]} Kf8 {[%clk
00:09:33]} {[%emt 00:13:05]} 47. Rxb6 {[%clk 00:02:49]} {[%emt 00:10:18]} Nxb6
{[%clk 00:09:54]} {[%emt 00:00:08]} 48. a5 {[%clk 00:03:13]} {[%emt 00:00:06]}
Nc8 {[%clk 00:10:14]} {[%emt 00:00:11]} 49. Ke3 {[%clk 00:02:46]} {[%emt
00:00:57]} Na7 {[%clk 00:07:33]} {[%emt 00:03:11]} 50. Kxe4 {[%clk 00:02:54]}
{[%emt 00:00:21]} Nc6 {[%clk 00:07:56]} {[%emt 00:00:07]} 51. a6 {[%clk
00:02:54]} {[%emt 00:00:30]} Kf7 {[%clk 00:07:33]} {[%emt 00:00:53]} 52. Kf4
{[%clk 00:01:51]} {[%emt 00:01:33]} Kf6 {[%clk 00:07:46]} {[%emt 00:00:17]} 53.
Kxg4 {[%clk 00:02:14]} {[%emt 00:00:07]} Na7 {[%clk 00:07:28]} {[%emt
00:00:48]} 54. Kf4 {[%clk 00:02:32]} {[%emt 00:00:11]} Nc6 {[%clk 00:07:52]}
{[%emt 00:00:07]} 55. Ke4 {[%clk 00:02:50]} {[%emt 00:00:10]} Kf7 {[%clk
00:06:55]} {[%emt 00:01:29]} 56. Ke3 {[%clk 00:01:42]} {[%emt 00:01:38]} Kf6
{[%clk 00:07:04]} {[%emt 00:00:21]} 57. Kf4 {[%clk 00:01:10]} {[%emt 00:01:02]}
Na7 {[%clk 00:07:09]} {[%emt 00:00:26]} 58. f3 {[%clk 00:01:01]} {[%emt
00:00:38]} Nc6 {[%clk 00:07:32]} {[%emt 00:00:07]} 59. Ke4 {[%clk 00:01:15]}
{[%emt 00:00:15]} Kf7 {[%clk 00:07:38]} {[%emt 00:00:25]} 60. Ke3 {[%clk
00:01:21]} {[%emt 00:00:24]} Kf6 {[%clk 00:08:01]} {[%emt 00:00:07]} 61. Kd2
{[%clk 00:01:21]} {[%emt 00:00:31]} Kxf5 {[%clk 00:07:19]} {[%emt 00:01:12]} 62.
Kc3 {[%clk 00:01:44]} {[%emt 00:00:05]} Ke5 {[%clk 00:06:23]} {[%emt 00:01:27]}
63. Kc4 {[%clk 00:01:53]} {[%emt 00:00:21]} Kd6 {[%clk 00:04:41]} {[%emt
00:02:12]} 64. f4 {[%clk 00:02:05]} {[%emt 00:00:17]} Kc7 {[%clk 00:04:05]}
{[%emt 00:01:07]} 65. Kd5 {[%clk 00:02:11]} {[%emt 00:00:24]} Nb4+ {[%clk
00:03:45]} {[%emt 00:00:50]} 66. Ke6 {[%clk 00:01:55]} {[%emt 00:00:45]} Nxa6
{[%clk 00:04:08]} {[%emt 00:00:08]} 1/2-1/2

[Event "Elitserien 2019/2020, round 1-3"]
[Site "Uppsala University, Gamla torget, Uppsala, Sweden"]
[Date "2019.10.18"]
[Round "1.15"]
[White "Olofsson-Dolk, Mattis"]
[Black "Grandell, Anders"]
[Result "1-0"]
[TimeControl "90 minutes for 40 moves + 30 minutes for the rest of the game + 30 seconds per move from move one."]
[BlackTitle "FM"]
[WhiteFideId "1715178"]
[BlackFideId "1709771"]
[WhiteElo "2209"]
[BlackElo "2289"]

1. e4 {[%clk 01:30:54]} {[%emt 00:00:04]} c5 {[%clk 01:30:56]} {[%emt
00:00:04]} 2. Nf3 {[%clk 01:31:16]} {[%emt 00:00:09]} g6 {[%clk 01:31:22]}
{[%emt 00:00:04]} 3. d4 {[%clk 01:31:40]} {[%emt 00:00:06]} cxd4 {[%clk
01:31:49]} {[%emt 00:00:03]} 4. Nxd4 {[%clk 01:32:02]} {[%emt 00:00:08]} Nc6
{[%clk 01:32:16]} {[%emt 00:00:04]} 5. c4 {[%clk 01:32:13]} {[%emt 00:00:18]}
Nf6 {[%clk 01:32:40]} {[%emt 00:00:07]} 6. Nc3 {[%clk 01:32:31]} {[%emt
00:00:11]} d6 {[%clk 01:33:07]} {[%emt 00:00:03]} 7. Nc2 {[%clk 01:32:18]}
{[%emt 00:00:43]} Bg7 {[%clk 01:33:13]} {[%emt 00:00:24]} 8. Be2 {[%clk
01:32:40]} {[%emt 00:00:08]} O-O {[%clk 01:32:56]} {[%emt 00:00:46]} 9. O-O
{[%clk 01:33:02]} {[%emt 00:00:08]} Nd7 {[%clk 01:33:22]} {[%emt 00:00:05]} 10.
Bd2 {[%clk 01:32:53]} {[%emt 00:00:39]} a5 {[%clk 01:32:19]} {[%emt 00:01:33]}
11. Rc1 {[%clk 01:20:31]} {[%emt 00:12:52]} Nc5 {[%clk 01:30:40]} {[%emt
00:02:08]} 12. b3 {[%clk 01:17:45]} {[%emt 00:03:16]} Nb4 {[%clk 01:24:32]}
{[%emt 00:06:40]} 13. Ra1 {[%clk 01:02:09]} {[%emt 00:16:06]} f5 {[%clk
01:20:28]} {[%emt 00:04:33]} 14. exf5 {[%clk 00:58:26]} {[%emt 00:04:13]} Nxc2
{[%clk 01:05:40]} {[%emt 00:15:18]} 15. Qxc2 {[%clk 00:58:35]} {[%emt
00:00:21]} Bxf5 {[%clk 01:06:04]} {[%emt 00:00:06]} 16. Qc1 {[%clk 00:58:09]}
{[%emt 00:00:56]} a4 {[%clk 00:57:03]} {[%emt 00:09:30]} 17. b4 {[%clk
00:50:33]} {[%emt 00:08:07]} Nd3 {[%clk 00:54:31]} {[%emt 00:03:02]} 18. Qa3
{[%clk 00:50:54]} {[%emt 00:00:09]} Bd4 {[%clk 00:43:13]} {[%emt 00:11:47]} 19.
Bh6 {[%clk 00:46:17]} {[%emt 00:05:07]} e5 {[%clk 00:28:15]} {[%emt 00:15:28]}
20. Bxf8 {[%clk 00:33:02]} {[%emt 00:13:47]} Qxf8 {[%clk 00:28:28]} {[%emt
00:00:16]} 21. Rad1 {[%clk 00:28:43]} {[%emt 00:04:49]} Nf4 {[%clk 00:25:03]}
{[%emt 00:03:55]} 22. Bf3 {[%clk 00:28:12]} {[%emt 00:01:01]} Be6 {[%clk
00:22:52]} {[%emt 00:02:40]} 23. Nb5 {[%clk 00:24:30]} {[%emt 00:04:13]} Bxc4
{[%clk 00:21:37]} {[%emt 00:01:45]} 24. Nxd4 {[%clk 00:24:55]} {[%emt
00:00:05]} Bxf1 {[%clk 00:21:52]} {[%emt 00:00:15]} 25. Kxf1 {[%clk 00:25:02]}
{[%emt 00:00:24]} exd4 {[%clk 00:22:06]} {[%emt 00:00:15]} 26. Rxd4 {[%clk
00:25:22]} {[%emt 00:00:09]} Qf6 {[%clk 00:11:47]} {[%emt 00:10:50]} 27. Qe3
{[%clk 00:23:40]} {[%emt 00:02:11]} Rf8 {[%clk 00:08:33]} {[%emt 00:03:44]} 28.
Bxb7 {[%clk 00:20:06]} {[%emt 00:04:05]} Kg7 {[%clk 00:07:38]} {[%emt
00:01:25]} 29. Bf3 {[%clk 00:15:57]} {[%emt 00:04:38]} d5 {[%clk 00:04:05]}
{[%emt 00:04:03]} 30. b5 {[%clk 00:14:50]} {[%emt 00:01:38]} a3 {[%clk
00:04:21]} {[%emt 00:00:13]} 31. Rd1 {[%clk 00:11:31]} {[%emt 00:03:50]} Rb8
{[%clk 00:00:58]} {[%emt 00:03:53]} 32. g3 {[%clk 00:11:09]} {[%emt 00:00:53]}
Ne6 {[%clk 00:00:40]} {[%emt 00:00:47]} 33. Rxd5 {[%clk 00:11:14]} {[%emt
00:00:24]} Rf8 {[%clk 00:00:34]} {[%emt 00:00:36]} 34. Kg2 {[%clk 00:10:52]}
{[%emt 00:00:53]} Kh8 {[%clk 00:00:32]} {[%emt 00:00:33]} 35. Rd6 {[%clk
00:10:08]} {[%emt 00:01:13]} Re8 {[%clk 00:00:59]} {[%emt 00:00:03]} 36. Bd5
{[%clk 00:10:01]} {[%emt 00:00:37]} Qd4 {[%clk 00:00:58]} {[%emt 00:00:31]} 37.
Bxe6 {[%clk 00:09:38]} {[%emt 00:00:53]} 1-0

[Event "Elitserien 2019/2020, round 1-3"]
[Site "Uppsala University, Gamla torget, Uppsala, Sweden"]
[Date "2019.10.18"]
[Round "1.16"]
[White "Cramling, Dan"]
[Black "Gonzalez, Emilio"]
[Result "1/2-1/2"]
[TimeControl "90 minutes for 40 moves + 30 minutes for the rest of the game + 30 seconds per move from move one."]
[WhiteTitle "IM"]
[WhiteFideId "1700162"]
[BlackFideId "1721062"]
[WhiteElo "2322"]
[BlackElo "1936"]

1. d4 {[%clk 01:22:57]} {[%emt 00:08:03]} Nf6 {[%clk 01:30:51]} {[%emt
00:00:10]} 2. c4 {[%clk 01:23:17]} {[%emt 00:00:09]} e6 {[%clk 01:30:32]}
{[%emt 00:00:49]} 3. Nc3 {[%clk 01:23:26]} {[%emt 00:00:21]} Bb4 {[%clk
01:30:51]} {[%emt 00:00:11]} 4. e3 {[%clk 01:23:44]} {[%emt 00:00:12]} b6
{[%clk 01:30:23]} {[%emt 00:00:59]} 5. Nge2 {[%clk 01:23:39]} {[%emt 00:00:34]}
c5 {[%clk 01:25:02]} {[%emt 00:05:51]} 6. a3 {[%clk 01:23:11]} {[%emt
00:00:58]} Ba5 {[%clk 01:22:33]} {[%emt 00:03:00]} 7. Rb1 {[%clk 01:18:55]}
{[%emt 00:04:46]} Qe7 {[%clk 01:19:12]} {[%emt 00:03:50]} 8. Bd2 {[%clk
01:14:21]} {[%emt 00:05:04]} O-O {[%clk 01:15:53]} {[%emt 00:03:48]} 9. b4
{[%clk 00:47:33]} {[%emt 00:27:19]} cxb4 {[%clk 01:15:29]} {[%emt 00:00:54]} 10.
axb4 {[%clk 00:47:37]} {[%emt 00:00:26]} Bxb4 {[%clk 01:15:45]} {[%emt
00:00:14]} 11. Rxb4 {[%clk 00:47:37]} {[%emt 00:00:30]} Qxb4 {[%clk 01:15:27]}
{[%emt 00:00:48]} 12. Nd5 {[%clk 00:47:29]} {[%emt 00:00:37]} Qxc4 {[%clk
00:56:27]} {[%emt 00:19:32]} 13. Nxf6+ {[%clk 00:36:50]} {[%emt 00:11:08]} gxf6
{[%clk 00:51:22]} {[%emt 00:05:35]} 14. Nf4 {[%clk 00:36:15]} {[%emt 00:01:04]}
Qa2 {[%clk 00:47:42]} {[%emt 00:04:10]} 15. Bd3 {[%clk 00:08:36]} {[%emt
00:28:10]} Ba6 {[%clk 00:47:24]} {[%emt 00:00:48]} 16. Bxh7+ {[%clk 00:01:20]}
{[%emt 00:07:45]} Kxh7 {[%clk 00:47:12]} {[%emt 00:00:43]} 17. Qh5+ {[%clk
00:01:21]} {[%emt 00:00:29]} Kg8 {[%clk 00:47:25]} {[%emt 00:00:16]} 18. Qg4+
{[%clk 00:01:28]} {[%emt 00:00:23]} Kh7 {[%clk 00:47:27]} {[%emt 00:00:28]} 19.
Qh4+ {[%clk 00:00:50]} {[%emt 00:01:08]} Kg8 {[%clk 00:47:31]} {[%emt
00:00:27]} 20. Qg3+ {[%clk 00:00:40]} {[%emt 00:00:39]} Kh7 {[%clk 00:47:13]}
{[%emt 00:00:48]} 21. Qh3+ {[%clk 00:00:57]} {[%emt 00:00:14]} Kg8 {[%clk
00:47:15]} {[%emt 00:00:28]} 22. Qg4+ {[%clk 00:01:13]} {[%emt 00:00:13]} Kh7
{[%clk 00:47:00]} {[%emt 00:00:46]} 23. Qh4+ {[%clk 00:01:29]} {[%emt
00:00:14]} Kg8 {[%clk 00:47:19]} {[%emt 00:00:10]} 1/2-1/2

[Event "Elitserien 2019/2020, round 1-3"]
[Site "Uppsala University, Gamla torget, Uppsala, Sweden"]
[Date "2019.10.18"]
[Round "1.17"]
[White "Heberla, Bartlomiej"]
[Black "Westerberg, Jonathan"]
[Result "1/2-1/2"]
[TimeControl "90 minutes for 40 moves + 30 minutes for the rest of the game + 30 seconds per move from move one."]
[WhiteTitle "GM"]
[BlackTitle "IM"]
[WhiteFideId "1115120"]
[BlackFideId "1701754"]
[WhiteElo "2552"]
[BlackElo "2546"]

1. d4 {[%clk 01:10:23]} {[%emt 00:20:36]} d5 {[%clk 01:29:47]} {[%emt
00:01:13]} 2. Nf3 {[%clk 01:10:42]} {[%emt 00:00:11]} Nf6 {[%clk 01:29:08]}
{[%emt 00:01:09]} 3. e3 {[%clk 01:11:08]} {[%emt 00:00:04]} e6 {[%clk
01:27:56]} {[%emt 00:01:42]} 4. c4 {[%clk 01:11:09]} {[%emt 00:00:28]} a6
{[%clk 01:26:30]} {[%emt 00:01:56]} 5. b3 {[%clk 01:11:34]} {[%emt 00:00:06]}
c5 {[%clk 01:25:05]} {[%emt 00:01:55]} 6. cxd5 {[%clk 01:11:55]} {[%emt
00:00:08]} exd5 {[%clk 01:24:36]} {[%emt 00:00:59]} 7. Bd3 {[%clk 01:01:34]}
{[%emt 00:10:51]} Nc6 {[%clk 01:22:07]} {[%emt 00:02:58]} 8. Bb2 {[%clk
01:01:48]} {[%emt 00:00:16]} Bg4 {[%clk 01:18:24]} {[%emt 00:04:13]} 9. dxc5
{[%clk 01:00:13]} {[%emt 00:02:05]} Bxc5 {[%clk 01:15:54]} {[%emt 00:03:00]} 10.
O-O {[%clk 01:00:38]} {[%emt 00:00:05]} O-O {[%clk 01:14:08]} {[%emt 00:02:16]}
11. h3 {[%clk 00:57:44]} {[%emt 00:03:24]} Bh5 {[%clk 01:10:52]} {[%emt
00:03:46]} 12. Nbd2 {[%clk 00:52:24]} {[%emt 00:05:50]} Ba7 {[%clk 01:05:24]}
{[%emt 00:05:57]} 13. Qb1 {[%clk 00:51:27]} {[%emt 00:01:28]} Bg6 {[%clk
01:01:34]} {[%emt 00:04:20]} 14. Bxg6 {[%clk 00:32:07]} {[%emt 00:19:50]} hxg6
{[%clk 00:59:06]} {[%emt 00:02:58]} 15. Qd3 {[%clk 00:30:20]} {[%emt 00:02:16]}
Re8 {[%clk 00:55:12]} {[%emt 00:04:24]} 16. Rad1 {[%clk 00:22:52]} {[%emt
00:07:58]} Ne4 {[%clk 00:49:08]} {[%emt 00:06:34]} 17. Nxe4 {[%clk 00:15:25]}
{[%emt 00:07:59]} dxe4 {[%clk 00:49:16]} {[%emt 00:00:21]} 18. Qc3 {[%clk
00:15:45]} {[%emt 00:00:10]} Qf6 {[%clk 00:49:41]} {[%emt 00:00:06]} 19. Nd2
{[%clk 00:15:38]} {[%emt 00:00:37]} Qxc3 {[%clk 00:44:44]} {[%emt 00:05:27]} 20.
Bxc3 {[%clk 00:16:05]} {[%emt 00:00:02]} b5 {[%clk 00:44:35]} {[%emt 00:00:39]}
21. b4 {[%clk 00:11:38]} {[%emt 00:04:58]} Bb8 {[%clk 00:38:52]} {[%emt
00:06:12]} 22. a3 {[%clk 00:10:33]} {[%emt 00:01:36]} a5 {[%clk 00:36:22]}
{[%emt 00:03:00]} 23. bxa5 {[%clk 00:10:47]} {[%emt 00:00:16]} Nxa5 {[%clk
00:36:10]} {[%emt 00:00:42]} 24. Rb1 {[%clk 00:06:12]} {[%emt 00:05:04]} Nc4
{[%clk 00:34:04]} {[%emt 00:02:35]} 25. Rxb5 {[%clk 00:04:26]} {[%emt
00:02:17]} Nxd2 {[%clk 00:32:28]} {[%emt 00:02:07]} 26. Bxd2 {[%clk 00:04:54]}
{[%emt 00:00:01]} Rxa3 {[%clk 00:32:50]} {[%emt 00:00:09]} 27. Rfb1 {[%clk
00:05:18]} {[%emt 00:00:05]} Be5 {[%clk 00:32:35]} {[%emt 00:00:44]} 28. Bc1
{[%clk 00:05:40]} {[%emt 00:00:10]} Rd3 {[%clk 00:31:27]} {[%emt 00:01:36]} 29.
Bb2 {[%clk 00:05:59]} {[%emt 00:00:12]} Bxb2 {[%clk 00:26:26]} {[%emt
00:05:32]} 30. R1xb2 {[%clk 00:06:23]} {[%emt 00:00:05]} Red8 {[%clk 00:24:55]}
{[%emt 00:01:59]} 31. Re5 {[%clk 00:04:19]} {[%emt 00:02:35]} f5 {[%clk
00:20:44]} {[%emt 00:04:41]} 32. g4 {[%clk 00:04:15]} {[%emt 00:00:33]} R3d5
{[%clk 00:16:34]} {[%emt 00:04:41]} 33. Rb5 {[%clk 00:03:36]} {[%emt 00:01:09]}
Rxb5 {[%clk 00:09:39]} {[%emt 00:07:26]} 34. Rxb5 {[%clk 00:04:04]} {[%emt
00:00:02]} Rf8 {[%clk 00:09:39]} {[%emt 00:00:30]} 35. Kg2 {[%clk 00:02:46]}
{[%emt 00:01:48]} Kh7 {[%clk 00:09:19]} {[%emt 00:00:50]} 36. Rb6 {[%clk
00:01:57]} {[%emt 00:01:18]} fxg4 {[%clk 00:05:15]} {[%emt 00:04:35]} 37. hxg4
{[%clk 00:02:21]} {[%emt 00:00:05]} Re8 {[%clk 00:05:44]} {[%emt 00:00:01]} 38.
Kg3 {[%clk 00:02:06]} {[%emt 00:00:44]} Kh6 {[%clk 00:05:22]} {[%emt 00:00:53]}
39. Kh4 {[%clk 00:01:39]} {[%emt 00:00:55]} Rf8 {[%clk 00:05:09]} {[%emt
00:00:45]} 40. Kg3 {[%clk 00:02:07]} {[%emt 00:00:01]} Re8 {[%clk 00:04:55]}
{[%emt 00:00:44]} 41. Ra6 {[%clk 00:00:48]} {[%emt 00:01:49]} Re7 {[%clk
00:02:36]} {[%emt 00:02:50]} 42. Ra8 {[%clk 00:20:38]} {[%emt 00:10:39]} g5
{[%clk 00:30:11]} {[%emt 00:02:56]} 43. Ra5 {[%clk 00:16:59]} {[%emt 00:04:08]}
g6 {[%clk 00:29:01]} {[%emt 00:01:40]} 44. Kg2 {[%clk 00:15:48]} {[%emt
00:01:41]} Ra7 {[%clk 00:25:41]} {[%emt 00:03:51]} 45. Re5 {[%clk 00:15:42]}
{[%emt 00:00:36]} Re7 {[%clk 00:26:06]} {[%emt 00:00:05]} 46. Rd5 {[%clk
00:15:22]} {[%emt 00:00:51]} Rd7 {[%clk 00:25:48]} {[%emt 00:00:48]} 47. Rd4
{[%clk 00:14:51]} {[%emt 00:01:00]} Re7 {[%clk 00:26:17]} {[%emt 00:00:02]} 48.
Rd5 {[%clk 00:07:05]} {[%emt 00:08:16]} Rd7 {[%clk 00:26:29]} {[%emt 00:00:17]}
49. Rd4 {[%clk 00:07:34]} {[%emt 00:00:01]} Re7 {[%clk 00:26:55]} {[%emt
00:00:05]} 50. Rd8 {[%clk 00:04:56]} {[%emt 00:03:08]} Kg7 {[%clk 00:25:17]}
{[%emt 00:02:08]} 51. Rd6 {[%clk 00:05:18]} {[%emt 00:00:08]} Kf7 {[%clk
00:22:53]} {[%emt 00:02:53]} 52. f3 {[%clk 00:05:31]} {[%emt 00:00:18]} exf3+
{[%clk 00:21:17]} {[%emt 00:02:06]} 53. Kxf3 {[%clk 00:05:59]} {[%emt
00:00:02]} Ra7 {[%clk 00:21:13]} {[%emt 00:00:33]} 54. Ke4 {[%clk 00:06:26]}
{[%emt 00:00:04]} Ra3 {[%clk 00:16:47]} {[%emt 00:04:55]} 55. Rd3 {[%clk
00:05:23]} {[%emt 00:01:34]} Ra4+ {[%clk 00:16:33]} {[%emt 00:00:43]} 56. Rd4
{[%clk 00:05:48]} {[%emt 00:00:06]} Ra3 {[%clk 00:16:26]} {[%emt 00:00:36]} 57.
Rc4 {[%clk 00:06:04]} {[%emt 00:00:14]} Ke6 {[%clk 00:11:51]} {[%emt 00:05:05]}
58. Rc6+ {[%clk 00:06:27]} {[%emt 00:00:07]} Kf7 {[%clk 00:12:15]} {[%emt
00:00:08]} 59. Kd4 {[%clk 00:06:50]} {[%emt 00:00:06]} Ra4+ {[%clk 00:11:28]}
{[%emt 00:01:16]} 60. Rc4 {[%clk 00:07:06]} {[%emt 00:00:14]} Ra3 {[%clk
00:11:39]} {[%emt 00:00:20]} 61. e4 {[%clk 00:02:41]} {[%emt 00:04:55]} Rg3
{[%clk 00:11:15]} {[%emt 00:00:53]} 62. Kd5 {[%clk 00:03:04]} {[%emt 00:00:06]}
Rxg4 {[%clk 00:11:17]} {[%emt 00:00:29]} 63. Rc7+ {[%clk 00:02:39]} {[%emt
00:00:54]} Ke8 {[%clk 00:09:52]} {[%emt 00:01:56]} 64. Rc8+ {[%clk 00:02:21]}
{[%emt 00:00:47]} Kd7 {[%clk 00:08:01]} {[%emt 00:02:22]} 65. Rg8 {[%clk
00:02:48]} {[%emt 00:00:02]} Rg1 {[%clk 00:08:19]} {[%emt 00:00:13]} 66. Rg7+
{[%clk 00:03:14]} {[%emt 00:00:04]} Ke8 {[%clk 00:07:24]} {[%emt 00:01:25]} 67.
Ke6 {[%clk 00:03:30]} {[%emt 00:00:13]} Kf8 {[%clk 00:07:09]} {[%emt 00:00:46]}
68. Rxg6 {[%clk 00:03:02]} {[%emt 00:00:56]} g4 {[%clk 00:06:16]} {[%emt
00:01:23]} 69. e5 {[%clk 00:02:59]} {[%emt 00:00:34]} g3 {[%clk 00:06:07]}
{[%emt 00:00:40]} 70. Rg4 {[%clk 00:02:27]} {[%emt 00:01:01]} g2 {[%clk
00:05:50]} {[%emt 00:00:48]} 71. Rg3 {[%clk 00:02:42]} {[%emt 00:00:14]} Ra1
{[%clk 00:06:16]} {[%emt 00:00:04]} 72. Rxg2 {[%clk 00:03:06]} {[%emt
00:00:07]} Ra6+ {[%clk 00:06:41]} {[%emt 00:00:04]} 73. Kf5 {[%clk 00:03:27]}
{[%emt 00:00:10]} Ke7 {[%clk 00:06:45]} {[%emt 00:00:26]} 74. Rg7+ {[%clk
00:03:51]} {[%emt 00:00:04]} Ke8 {[%clk 00:07:12]} {[%emt 00:00:04]} 75. Rb7
{[%clk 00:04:17]} {[%emt 00:00:04]} Rc6 {[%clk 00:07:27]} {[%emt 00:00:15]} 76.
e6 {[%clk 00:04:25]} {[%emt 00:00:22]} Rc1 {[%clk 00:07:54]} {[%emt 00:00:03]}
77. e7 {[%clk 00:04:43]} {[%emt 00:00:12]} Rf1+ {[%clk 00:08:19]} {[%emt
00:00:04]} 78. Ke4 {[%clk 00:05:06]} {[%emt 00:00:08]} Re1+ {[%clk 00:08:46]}
{[%emt 00:00:04]} 79. Kd4 {[%clk 00:05:32]} {[%emt 00:00:03]} Rxe7 {[%clk
00:09:13]} {[%emt 00:00:04]} 80. Rxe7+ {[%clk 00:05:59]} {[%emt 00:00:03]} Kxe7
{[%clk 00:09:39]} {[%emt 00:00:04]} 81. Ke4 {[%emt 00:00:03]} 1/2-1/2